fUST/lending_fUST_20250624
["ID","MTS","AMOUNT","RATE_DAILY","PERIOD"]
[367342682,1750756249784,-1046.58,0.00021369,2]
[367342684,1750756249794,-746.79,0.00021369,2]
[367342686,1750756249802,-460.0,0.00021369,2]
[367342688,1750756249812,-900.7,0.00021369,2]
[367342690,1750756249822,-460.0,0.00021369,2]
[367342692,1750756249832,-1330.85,0.00021369,2]
[367342694,1750756249841,-1466.22,0.00021369,2]
[367342696,1750756249850,-460.0,0.00021369,2]
[367342698,1750756249859,-460.0,0.00021369,2]
[367342700,1750756249868,-460.0,0.00021369,2]
[367342702,1750756249877,-460.0,0.00021369,2]
[367342704,1750756249887,-526.83,0.00021369,2]
[367342705,1750756249901,-377.5,0.00021376,4]
[367342707,1750756249910,-1338.363,0.00021395,2]
[367342709,1750756249919,-177.671,0.00021395,2]
[367342711,1750756249929,-186.82,0.000214,2]
[367342713,1750756249939,-186.82056726,0.000214,2]
[367342715,1750756249948,-2000.0,0.00021403,2]
[367342717,1750756249958,-800.603,0.00021418,2]
[367342719,1750756249967,-2200.0,0.00021418,2]
[367342721,1750756249976,-2448.455233,0.00021499,2]
[367342723,1750756249986,-154.00978643,0.00021551,2]
[367342729,1750756250030,-500.0,0.00021568,2]
[367342730,1750756250039,-1500.0,0.00021568,2]
[367342732,1750756250049,-2000.0,0.00021616,2]
[367342734,1750756250058,-2000.0,0.00021616,2]
[367342736,1750756250067,-215.0738,0.0002162,2]
[367342738,1750756250076,-460.0,0.00021643,2]
[367342740,1750756250085,-576.78530948,0.00021643,2]
[367342742,1750756250094,-460.0,0.00021643,2]
[367342744,1750756250103,-460.0,0.00021643,2]
[367342746,1750756250112,-460.0,0.00021643,2]
[367342748,1750756250121,-500.0,0.00021643,18]
[367342750,1750756250130,-500.0,0.00021643,18]
[367342752,1750756250139,-619.95,0.00021643,2]
[367342753,1750756250148,-460.0,0.00021643,2]
[367342755,1750756250157,-460.0,0.00021643,2]
[367342757,1750756250166,-460.0,0.00021643,2]
[367342759,1750756250175,-460.0,0.00021643,2]
[367342761,1750756250184,-1003.9,0.00021643,2]
[367342763,1750756250193,-2376.79,0.00021643,2]
[367342765,1750756250202,-2214.61,0.00021643,2]
[367342767,1750756250211,-460.0,0.00021643,2]
[367342769,1750756250221,-758.26,0.00021643,2]
[367342771,1750756250230,-460.0,0.00021643,2]
[367342773,1750756250238,-603.45,0.00021643,2]
[367342774,1750756250248,-460.0,0.00021643,2]
[367342776,1750756250257,-496.93,0.00021643,2]
[367342778,1750756250266,-906.27,0.00021643,2]
[367342780,1750756250275,-275.30986594,0.00021643,2]
[367342782,1750756250284,-765.91,0.00021643,2]
[367342784,1750756250293,-1619.14,0.00021643,2]
[367342786,1750756250303,-408.62773408,0.00021643,2]
[367342788,1750756250312,-347.51860816,0.00021643,2]
[367342790,1750756250324,-460.0,0.00021643,2]
[367342792,1750756250333,-460.0,0.00021643,2]
[367342794,1750756250342,-7219.34,0.00021643,2]
[367342796,1750756250351,-460.0,0.00021643,2]
[367342798,1750756250360,-460.0,0.00021643,2]
[367342800,1750756250369,-1066.49,0.00021643,2]
[367342802,1750756250378,-610.94,0.00021643,2]
[367342803,1750756250387,-565.53,0.00021643,2]
[367342804,1750756250395,-800.37,0.00021643,2]
[367342805,1750756250404,-460.0,0.00021643,2]
[367342806,1750756250413,-460.0,0.00021643,2]
[367342807,1750756250422,-460.0,0.00021643,2]
[367342808,1750756250430,-460.0,0.00021643,2]
[367342809,1750756250439,-460.0,0.00021643,2]
[367342810,1750756250448,-460.0,0.00021643,2]
[367342811,1750756250457,-460.0,0.00021643,2]
[367342812,1750756250466,-1317.61,0.00021643,2]
[367342813,1750756250474,-460.0,0.00021643,2]
[367342814,1750756250484,-901.35,0.00021643,2]
[367342815,1750756250492,-1046.58,0.00021643,2]
[367342816,1750756250501,-746.79,0.00021643,2]
[367342817,1750756250510,-460.0,0.00021643,2]
[367342818,1750756250518,-900.7,0.00021643,2]
[367342819,1750756250527,-460.0,0.00021643,2]
[367342820,1750756250537,-1330.85,0.00021643,2]
[367342821,1750756250546,-1466.22,0.00021643,2]
[367342822,1750756250554,-460.0,0.00021643,2]
[367342823,1750756250563,-460.0,0.00021643,2]
[367342824,1750756250572,-460.0,0.00021643,2]
[367342825,1750756250581,-509.99191946,0.00021643,2]
[367342826,1750756250590,-526.83,0.00021643,2]
[367342827,1750756250600,-500.0,0.00021668,2]
[367342828,1750756250609,-500.0,0.00021668,2]
[367342829,1750756250619,-500.0,0.00021668,2]
[367342830,1750756250629,-168.0,0.00021673,2]
[367342832,1750756250638,-2048.59,0.00021717,2]
[367342834,1750756250647,-4725.18,0.000218,2]
[367342836,1750756250656,-8764.1,0.000218,2]
[367342837,1750756250665,-57657.82,0.000218,2]
[367342839,1750756250674,-377.5,0.00021829,4]
[367342841,1750756250683,-179.83814567,0.00021849,2]
[367342843,1750756250692,-500.0,0.000219,2]
[367342845,1750756250701,-500.0,0.000219,2]
[367342847,1750756250710,-500.0,0.000219,2]
[367342849,1750756250720,-500.0,0.000219,2]
[367342851,1750756250729,-500.0,0.000219,2]
[367342853,1750756250738,-500.0,0.000219,2]
[367342855,1750756250747,-500.0,0.000219,2]
[367342857,1750756250756,-500.0,0.000219,2]
[367342859,1750756250765,-504.62879172,0.000219,2]
[367342861,1750756250774,-219.48184596,0.000219,2]
[367342863,1750756250783,-500.0,0.000219,2]
[367342865,1750756250792,-500.0,0.000219,2]
[367342867,1750756250801,-507.64360232,0.000219,2]
[367342869,1750756250810,-500.0,0.000219,2]
[367342871,1750756250819,-500.0,0.000219,2]
[367342873,1750756250829,-151.0,0.000219,3]
[367342875,1750756250838,-168.0,0.00021903,2]
[367342877,1750756250847,-460.0,0.00021917,2]
[367342879,1750756250857,-460.0,0.00021917,2]
[367342881,1750756250866,-460.0,0.00021917,2]
[367342883,1750756250875,-460.0,0.00021917,2]
[367342885,1750756250885,-500.0,0.00021917,19]
[367342887,1750756250895,-500.0,0.00021917,19]
[367342889,1750756250905,-619.95,0.00021917,2]
[367342891,1750756250915,-460.0,0.00021917,2]
[367342893,1750756250924,-500.0,0.00021917,2]
[367342895,1750756250933,-460.0,0.00021917,2]
[367342897,1750756250942,-460.0,0.00021917,2]
[367342899,1750756250951,-460.0,0.00021917,2]
[367342901,1750756250960,-1003.9,0.00021917,2]
[367342902,1750756250969,-2376.79,0.00021917,2]
[367342904,1750756250979,-2214.61,0.00021917,2]
[367342906,1750756250988,-460.0,0.00021917,2]
[367342908,1750756250997,-758.26,0.00021917,2]
[367342910,1750756251006,-460.0,0.00021917,2]
[367342912,1750756251016,-603.45,0.00021917,2]
[367342914,1750756251026,-460.0,0.00021917,2]
[367342916,1750756251035,-496.93,0.00021917,2]
[367342918,1750756251044,-906.27,0.00021917,2]
[367342920,1750756251053,-765.91,0.00021917,2]
[367342922,1750756251063,-1619.14,0.00021917,2]
[367342924,1750756251072,-460.0,0.00021917,2]
[367342926,1750756251081,-460.0,0.00021917,2]
[367342928,1750756251090,-7219.34,0.00021917,2]
[367342930,1750756251099,-460.0,0.00021917,2]
[367342932,1750756251109,-460.0,0.00021917,2]
[367342934,1750756251118,-1066.49,0.00021917,2]
[367342936,1750756251126,-610.94,0.00021917,2]
[367342938,1750756251135,-565.53,0.00021917,2]
[367342940,1750756251144,-800.37,0.00021917,2]
[367342942,1750756251153,-460.0,0.00021917,2]
[367342944,1750756251161,-460.0,0.00021917,2]
[367342946,1750756251170,-460.0,0.00021917,2]
[367342948,1750756251179,-460.0,0.00021917,2]
[367342950,1750756251188,-460.0,0.00021917,2]
[367342951,1750756251197,-460.0,0.00021917,2]
[367342953,1750756251206,-460.0,0.00021917,2]
[367342955,1750756251215,-1317.61,0.00021917,2]
[367342957,1750756251224,-460.0,0.00021917,2]
[367342959,1750756251234,-901.35,0.00021917,2]
[367342961,1750756251243,-1046.58,0.00021917,2]
[367342963,1750756251252,-746.79,0.00021917,2]
[367342965,1750756251262,-460.0,0.00021917,2]
[367342967,1750756251271,-900.7,0.00021917,2]
[367342969,1750756251280,-160.0,0.00021917,2]
[367342971,1750756251289,-460.0,0.00021917,2]
[367342973,1750756251298,-1330.85,0.00021917,2]
[367342975,1750756251307,-1466.22,0.00021917,2]
[367342977,1750756251315,-460.0,0.00021917,2]
[367342979,1750756251324,-460.0,0.00021917,2]
[367342981,1750756251333,-460.0,0.00021917,2]
[367342983,1750756251343,-500.0,0.00021942,2]
[367342985,1750756251352,-500.0,0.00021942,2]
[367342987,1750756251361,-2500.0,0.00021951,2]
[367342989,1750756251370,-2448.455233,0.00021992,15]
[367342991,1750756251379,-500.70631355,0.00021994,2]
[367342992,1750756251388,-2919.84,0.00022,2]
[367342994,1750756251397,-167.0,0.00022,2]
[367342996,1750756251406,-160.0,0.00022,3]
[367342998,1750756251415,-633.99653126,0.00022042,2]
[367343000,1750756251425,-500.0,0.00022116,2]
[367343002,1750756251434,-500.0,0.00022164,2]
[367343004,1750756251443,-2500.0,0.00022164,2]
[367343006,1750756251452,-460.0,0.00022191,2]
[367343008,1750756251461,-312.519177,0.00022191,2]
[367343010,1750756251470,-460.0,0.00022191,2]
[367343012,1750756251479,-460.0,0.00022191,2]
[367343014,1750756251488,-500.0,0.00022191,20]
[367343016,1750756251497,-500.0,0.00022191,20]
[367343018,1750756251506,-619.95,0.00022191,2]
[367343020,1750756251515,-293.65424496,0.00022191,2]
[367343022,1750756251524,-460.0,0.00022191,2]
[367343023,1750756251533,-460.0,0.00022191,2]
[367343025,1750756251543,-460.0,0.00022191,2]
[367343027,1750756251552,-1003.9,0.00022191,2]
[367343029,1750756251561,-2376.79,0.00022191,2]
[367343031,1750756251570,-2214.61,0.00022191,2]
[367343033,1750756251579,-460.0,0.00022191,2]
[367343035,1750756251588,-758.26,0.00022191,2]
[367343037,1750756251597,-460.0,0.00022191,2]
[367343039,1750756251606,-603.45,0.00022191,2]
[367343041,1750756251615,-557.56575972,0.00022191,2]
[367343043,1750756251625,-496.93,0.00022191,2]
[367343045,1750756251634,-906.27,0.00022191,2]
[367343047,1750756251644,-765.91,0.00022191,2]
[367343049,1750756251653,-1619.14,0.00022191,2]
[367343051,1750756251662,-460.0,0.00022191,2]
[367343053,1750756251671,-460.0,0.00022191,2]
[367343055,1750756251681,-7219.34,0.00022191,2]
[367343057,1750756251689,-460.0,0.00022191,2]
[367343059,1750756251698,-460.0,0.00022191,2]
[367343061,1750756251707,-1066.49,0.00022191,2]
[367343063,1750756251716,-610.94,0.00022191,2]
[367343064,1750756251725,-565.53,0.00022191,2]
[367343066,1750756251734,-800.37,0.00022191,2]
[367343068,1750756251744,-460.0,0.00022191,2]
[367343070,1750756251753,-460.0,0.00022191,2]
[367343072,1750756251762,-460.0,0.00022191,2]
[367343074,1750756251771,-460.0,0.00022191,2]
[367343076,1750756251781,-460.0,0.00022191,2]
[367343078,1750756251790,-460.0,0.00022191,2]
[367343080,1750756251799,-460.0,0.00022191,2]
[367343082,1750756251809,-1317.61,0.00022191,2]
[367343084,1750756251818,-460.0,0.00022191,2]
[367343086,1750756251827,-901.35,0.00022191,2]
[367343088,1750756251837,-1046.58,0.00022191,2]
[367343090,1750756251846,-746.79,0.00022191,2]
[367343092,1750756251855,-460.0,0.00022191,2]
[367343094,1750756251865,-900.7,0.00022191,2]
[367343096,1750756251874,-460.0,0.00022191,2]
[367343098,1750756251883,-1330.85,0.00022191,2]
[367343100,1750756251893,-1466.22,0.00022191,2]
[367343102,1750756251904,-460.0,0.00022191,2]
[367343104,1750756251913,-460.0,0.00022191,2]
[367343106,1750756251922,-460.0,0.00022191,2]
[367343108,1750756251932,-500.0,0.00022213,2]
[367343110,1750756251942,-361.23343762,0.00022213,2]
[367343112,1750756251954,-500.0,0.00022213,2]
[367343114,1750756251964,-377.5,0.00022283,5]
[367343116,1750756251977,-168.0,0.00022294,2]
[367343118,1750756251987,-500.0,0.00022294,2]
[367343120,1750756251997,-500.0,0.00022294,2]
[367343122,1750756252007,-151.0,0.000223,6]
[367343124,1750756252016,-500.0,0.00022328,2]
[367343126,1750756252025,-306.63387142,0.00022335,2]
[367343128,1750756252034,-403.99422692,0.00022335,2]
[367343130,1750756252044,-500.0,0.00022335,2]
[367343132,1750756252053,-168.0,0.00022335,2]
[367343134,1750756252062,-500.0,0.00022339,2]
[367343135,1750756252071,-500.0,0.00022339,2]
[367343138,1750756252081,-500.0,0.00022356,2]
[367343139,1750756252090,-200.0,0.0002239,4]
[367343141,1750756252099,-160.0,0.00022442,2]
[367343143,1750756252109,-1000.0,0.00022448,2]
[367343145,1750756252118,-1000.0,0.00022448,2]
[367343147,1750756252127,-501.08056943,0.00022448,2]
[367343149,1750756252137,-501.66464936,0.00022448,2]
[367343151,1750756252146,-1000.0,0.00022448,2]
[367343153,1750756252156,-1000.0,0.00022448,2]
[367343155,1750756252165,-1000.0,0.00022448,2]
[367343157,1750756252174,-1000.0,0.00022448,2]
[367343159,1750756252183,-180.828108,0.00022465,7]
[367343161,1750756252194,-180.828108,0.00022465,7]
[367343163,1750756252203,-460.0,0.00022465,2]
[367343165,1750756252213,-460.0,0.00022465,2]
[367343167,1750756252222,-460.0,0.00022465,2]
[367343169,1750756252231,-500.0,0.00022465,21]
[367343171,1750756252241,-619.95,0.00022465,2]
[367343173,1750756252250,-500.0,0.00022465,2]
[367343175,1750756252259,-460.0,0.00022465,2]
[367343177,1750756252269,-460.0,0.00022465,2]
[367343179,1750756252278,-460.0,0.00022465,2]
[367343181,1750756252287,-1003.9,0.00022465,2]
[367343183,1750756252297,-2376.79,0.00022465,2]
[367343185,1750756252306,-2214.61,0.00022465,2]
[367343187,1750756252315,-460.0,0.00022465,2]
[367343189,1750756252325,-758.26,0.00022465,2]
[367343191,1750756252334,-460.0,0.00022465,2]
[367343193,1750756252343,-603.45,0.00022465,2]
[367343195,1750756252353,-496.93,0.00022465,2]
[367343197,1750756252362,-906.27,0.00022465,2]
[367343199,1750756252372,-765.91,0.00022465,2]
[367343201,1750756252381,-1619.14,0.00022465,2]
[367343203,1750756252391,-300.41593803,0.00022465,2]
[367343205,1750756252400,-460.0,0.00022465,2]
[367343207,1750756252409,-7219.34,0.00022465,2]
[367343209,1750756252419,-460.0,0.00022465,2]
[367343211,1750756252428,-460.0,0.00022465,2]
[367343213,1750756252437,-1066.49,0.00022465,2]
[367343215,1750756252447,-610.94,0.00022465,2]
[367343217,1750756252457,-565.53,0.00022465,2]
[367343219,1750756252466,-800.37,0.00022465,2]
[367343221,1750756252475,-460.0,0.00022465,2]
[367343223,1750756252485,-460.0,0.00022465,2]
[367343225,1750756252495,-460.0,0.00022465,2]
[367343227,1750756252504,-460.0,0.00022465,2]
[367343229,1750756252515,-460.0,0.00022465,2]
[367343231,1750756252524,-460.0,0.00022465,2]
[367343233,1750756252534,-460.0,0.00022465,2]
[367343235,1750756252544,-1317.61,0.00022465,2]
[367343237,1750756252554,-460.0,0.00022465,2]
[367343239,1750756252564,-901.35,0.00022465,2]
[367343241,1750756252573,-1046.58,0.00022465,2]
[367343243,1750756252583,-746.79,0.00022465,2]
[367343245,1750756252592,-460.0,0.00022465,2]
[367343247,1750756252602,-900.7,0.00022465,2]
[367343249,1750756252611,-460.0,0.00022465,2]
[367343251,1750756252622,-1330.85,0.00022465,2]
[367343253,1750756252632,-1466.22,0.00022465,2]
[367343255,1750756252641,-460.0,0.00022465,2]
[367343258,1750756252651,-473.56793247,0.00022465,2]
[367343260,1750756252661,-460.0,0.00022465,2]
[367343262,1750756252670,-1000.0,0.0002249,2]
[367343264,1750756252679,-3000.0,0.00022499,2]
[367343266,1750756252689,-150.0,0.000225,2]
[367343268,1750756252698,-151.0,0.0002251,7]
[367343270,1750756252707,-151.0,0.0002251,7]
[367343272,1750756252717,-159.54541,0.0002251,7]
[367343274,1750756252726,-168.0,0.00022555,2]
[367343276,1750756252735,-168.0,0.00022588,2]
[367343278,1750756252744,-177.241329,0.00022603,2]
[367343280,1750756252753,-151.0,0.0002265,7]
[367343282,1750756252762,-153.521181,0.0002265,7]
[367343284,1750756252771,-2448.455233,0.00022679,2]
[367343286,1750756252780,-151.0,0.000227,6]
[367343288,1750756252790,-3000.0,0.00022712,2]
[367343290,1750756252799,-155.10758527,0.00022724,2]
[367343292,1750756252808,-1000.0,0.00022724,5]
[367343294,1750756252817,-377.5,0.00022737,5]
[367343296,1750756252826,-460.0,0.00022739,2]
[367343298,1750756252835,-460.0,0.00022739,2]
[367343300,1750756252845,-197.10675385,0.00022739,2]
[367343302,1750756252854,-500.0,0.00022739,22]
[367343303,1750756252864,-619.95,0.00022739,2]
[367343306,1750756252876,-460.0,0.00022739,2]
[367343308,1750756252885,-460.0,0.00022739,2]
[367343310,1750756252895,-460.0,0.00022739,2]
[367343311,1750756252906,-1003.9,0.00022739,2]
[367343312,1750756252915,-2376.79,0.00022739,2]
[367343313,1750756252924,-2214.61,0.00022739,2]
[367343314,1750756252933,-460.0,0.00022739,2]
[367343315,1750756252942,-758.26,0.00022739,2]
[367343316,1750756252951,-460.0,0.00022739,2]
[367343317,1750756252960,-603.45,0.00022739,2]
[367343318,1750756252970,-496.93,0.00022739,2]
[367343320,1750756252979,-906.27,0.00022739,2]
[367343322,1750756252989,-765.91,0.00022739,2]
[367343324,1750756252999,-1619.14,0.00022739,2]
[367343325,1750756253008,-460.0,0.00022739,2]
[367343328,1750756253018,-7219.34,0.00022739,2]
[367343330,1750756253028,-460.0,0.00022739,2]
[367343332,1750756253037,-460.0,0.00022739,2]
[367343334,1750756253047,-1066.49,0.00022739,2]
[367343336,1750756253056,-610.94,0.00022739,2]
[367343338,1750756253066,-565.53,0.00022739,2]
[367343340,1750756253075,-800.37,0.00022739,2]
[367343342,1750756253085,-460.0,0.00022739,2]
[367343344,1750756253095,-460.0,0.00022739,2]
[367343346,1750756253104,-460.0,0.00022739,2]
[367343348,1750756253114,-460.0,0.00022739,2]
[367343350,1750756253124,-460.0,0.00022739,2]
[367343352,1750756253134,-460.0,0.00022739,2]
[367343354,1750756253143,-460.0,0.00022739,2]
[367343356,1750756253153,-1317.61,0.00022739,2]
[367343358,1750756253163,-460.0,0.00022739,2]
[367343360,1750756253173,-901.35,0.00022739,2]
[367343362,1750756253182,-746.79,0.00022739,2]
[367343364,1750756253192,-1046.58,0.00022739,2]
[367343366,1750756253201,-460.0,0.00022739,2]
[367343368,1750756253211,-900.7,0.00022739,2]
[367343370,1750756253220,-460.0,0.00022739,2]
[367343372,1750756253229,-1330.85,0.00022739,2]
[367343375,1750756253239,-1466.22,0.00022739,2]
[367343377,1750756253248,-460.0,0.00022739,2]
[367343379,1750756253258,-460.0,0.00022739,2]
[367343381,1750756253268,-168.0,0.0002275,2]
[367343383,1750756253277,-1000.0,0.0002276,2]
[367343385,1750756253287,-1000.0,0.0002276,2]
[367343387,1750756253296,-587.0,0.00022774,2]
[367343389,1750756253306,-587.0,0.00022776,2]
[367343391,1750756253316,-8764.1,0.000228,7]
[367343393,1750756253326,-57657.82,0.000228,2]
[367343395,1750756253335,-12556.00642039,0.000228,7]
[367343397,1750756253345,-846.68469334,0.000228,7]
[367343399,1750756253356,-1000.0,0.00022842,2]
[367343401,1750756253366,-168.0,0.00022849,2]
[367343403,1750756253376,-1000.0,0.00022887,2]
[367343405,1750756253386,-168.0,0.00022892,2]
[367343407,1750756253395,-4725.18,0.000229,7]
[367343409,1750756253405,-500.0,0.000229,2]
[367343411,1750756253414,-500.0,0.000229,2]
[367343413,1750756253423,-500.0,0.000229,2]
[367343415,1750756253432,-500.0,0.000229,2]
[367343417,1750756253442,-500.0,0.000229,2]
[367343419,1750756253452,-168.0,0.00022943,2]
[367343421,1750756253462,-600.0,0.00022944,2]
[367343423,1750756253471,-223.0315306,0.00022989,2]
[367343425,1750756253481,-610.27674679,0.00022996,2]
[367343427,1750756253491,-1500.0,0.00022996,2]
[367343429,1750756253501,-1500.0,0.00022996,2]
[367343431,1750756253510,-1599.69949558,0.00022996,2]
[367343434,1750756253520,-1500.0,0.00022996,2]
[367343436,1750756253529,-748.58789965,0.00022996,2]
[367343437,1750756253539,-608.0,0.00022997,2]
[367343440,1750756253549,-160.0,0.00023,3]
[367343442,1750756253558,-160.0,0.00023,3]
[367343444,1750756253568,-180.828108,0.00023,7]
[367343446,1750756253577,-180.828108,0.00023,7]
[367343448,1750756253587,-1500.0,0.00023,3]
[367343450,1750756253596,-425.14181427,0.00023,3]
[367343452,1750756253606,-160.0,0.00023,3]
[367343454,1750756253615,-160.0,0.00023,7]
[367343456,1750756253625,-160.0,0.00023,3]
[367343458,1750756253635,-836.80226758,0.00023,3]
[367343460,1750756253650,-230.20892031,0.00023,3]
[367343462,1750756253664,-151.0,0.00023013,7]
[367343464,1750756253673,-151.0,0.00023013,7]
[367343466,1750756253683,-337.02147983,0.00023013,2]
[367343468,1750756253692,-460.0,0.00023013,2]
[367343470,1750756253702,-500.0,0.00023013,23]
[367343472,1750756253712,-619.95,0.00023013,2]
[367343474,1750756253722,-500.0,0.00023013,2]
[367343476,1750756253731,-180.85877742,0.00023013,2]
[367343478,1750756253740,-460.0,0.00023013,2]
[367343480,1750756253750,-460.0,0.00023013,2]
[367343482,1750756253759,-1003.9,0.00023013,2]
[367343484,1750756253770,-2376.79,0.00023013,2]
[367343486,1750756253779,-2214.61,0.00023013,2]
[367343488,1750756253789,-460.0,0.00023013,2]
[367343490,1750756253799,-758.26,0.00023013,2]
[367343492,1750756253810,-460.0,0.00023013,2]
[367343494,1750756253819,-603.45,0.00023013,2]
[367343496,1750756253829,-496.93,0.00023013,2]
[367343498,1750756253838,-906.27,0.00023013,2]
[367343500,1750756253848,-765.91,0.00023013,2]
[367343502,1750756253858,-1619.14,0.00023013,2]
[367343505,1750756253867,-460.0,0.00023013,2]
[367343520,1750756254009,-7219.34,0.00023013,2]
[367343523,1750756254019,-460.0,0.00023013,2]
[367343525,1750756254029,-460.0,0.00023013,2]
[367343527,1750756254039,-1066.49,0.00023013,2]
[367343529,1750756254048,-610.94,0.00023013,2]
[367343531,1750756254057,-565.53,0.00023013,2]
[367343533,1750756254067,-800.37,0.00023013,2]
[367343535,1750756254076,-460.0,0.00023013,2]
[367343537,1750756254085,-460.0,0.00023013,2]
[367343538,1750756254094,-460.0,0.00023013,2]
[367343540,1750756254103,-460.0,0.00023013,2]
[367343543,1750756254113,-460.0,0.00023013,2]
[367343545,1750756254122,-487.3434075,0.00023013,2]
[367343547,1750756254132,-460.0,0.00023013,2]
[367343549,1750756254141,-1317.61,0.00023013,2]
[367343551,1750756254150,-594.87100647,0.00023013,2]
[367343553,1750756254159,-901.35,0.00023013,2]
[367343555,1750756254169,-746.79,0.00023013,2]
[367343557,1750756254178,-1046.58,0.00023013,2]
[367343559,1750756254187,-460.0,0.00023013,2]
[367343561,1750756254196,-900.7,0.00023013,2]
[367343563,1750756254205,-460.0,0.00023013,2]
[367343565,1750756254214,-1330.85,0.00023013,2]
[367343567,1750756254224,-1466.22,0.00023013,2]
[367343569,1750756254233,-460.0,0.00023013,2]
[367343571,1750756254242,-460.0,0.00023013,2]
[367343573,1750756254253,-167.0,0.00023014,7]
[367343575,1750756254263,-633.99653126,0.00023029,2]
[367343577,1750756254272,-3500.0,0.00023047,2]
[367343579,1750756254282,-2448.455233,0.00023069,15]
[367343581,1750756254291,-600.0,0.00023183,2]
[367343583,1750756254300,-377.5,0.00023191,5]
[367343585,1750756254310,-151.0,0.000232,8]
[367343587,1750756254319,-12500.0,0.00023243,3]
[367343589,1750756254328,-12500.0,0.00023252,3]
[367343591,1750756254338,-395.59162985,0.00023258,2]
[367343593,1750756254347,-3500.0,0.0002326,2]
[367343595,1750756254356,-12500.0,0.00023261,3]
[367343597,1750756254366,-2448.455233,0.00023278,3]
[367343599,1750756254375,-151.0,0.00023287,7]
[367343601,1750756254384,-460.0,0.00023287,2]
[367343603,1750756254395,-500.0,0.00023287,24]
[367343605,1750756254404,-619.95,0.00023287,2]
[367343607,1750756254413,-521.55733974,0.00023287,2]
[367343609,1750756254422,-460.0,0.00023287,2]
[367343611,1750756254431,-1003.9,0.00023287,2]
[367343613,1750756254441,-2376.79,0.00023287,2]
[367343615,1750756254450,-2214.61,0.00023287,2]
[367343617,1750756254459,-460.0,0.00023287,2]
[367343619,1750756254469,-758.26,0.00023287,2]
[367343621,1750756254478,-460.0,0.00023287,2]
[367343623,1750756254488,-603.45,0.00023287,2]
[367343625,1750756254497,-496.93,0.00023287,2]
[367343627,1750756254506,-906.27,0.00023287,2]
[367343629,1750756254516,-765.91,0.00023287,2]
[367343631,1750756254525,-1619.14,0.00023287,2]
[367343633,1750756254534,-460.0,0.00023287,2]
[367343635,1750756254544,-7219.34,0.00023287,2]
[367343637,1750756254554,-460.0,0.00023287,2]
[367343639,1750756254564,-460.0,0.00023287,2]
[367343641,1750756254574,-1066.49,0.00023287,2]
[367343643,1750756254584,-610.94,0.00023287,2]
[367343645,1750756254593,-565.53,0.00023287,2]
[367343647,1750756254603,-800.37,0.00023287,2]
[367343649,1750756254612,-460.0,0.00023287,2]
[367343651,1750756254622,-460.0,0.00023287,2]
[367343654,1750756254633,-460.0,0.00023287,2]
[367343656,1750756254643,-436.55999722,0.00023287,2]